Workbook

Sheet DONNEES
B4: PRODUIT | C4: Totalgénéral | D4: AUTRE DD | E4: DD | F4: GROS | G4: PRESTIGE | H4: PROMOTION | I4: SUBD | N4: Indicateurs | O4: Realisation | S4: CANAL | T4: T .ventes
B5: Boisson0.25l | C5: =SUM(ventes[[#This Row],[AUTRE DD]:[SUBD ]]) -> 1867399.059 | D5: 19764.70608 | E5: 1359388.249 | F5: 405680.6699 | G5: 0 | H5: 6007.450421 | I5: 76557.98321 | N5: Résultat | O5: 21083142.72 | S5: DD | T5: =SUM(ventes[DD]) -> 299402341.3
B6: Canette 33 cl | C6: =SUM(ventes[[#This Row],[AUTRE DD]:[SUBD ]]) -> 82543204 | D6: 360867.12 | E6: 27598142.19 | F6: 17554973.01 | G6: 120191.5971 | H6: 107628.6098 | I6: 36801401.47 | N6: Ventes | O6: =SUM(ventes[Totalgénéral]) -> 650019314.9 | S6: SUBD | T6: =SUM(ventes[[SUBD ]]) -> 235598275
B7: Confiture | C7: =SUM(ventes[[#This Row],[AUTRE DD]:[SUBD ]]) -> 7266334.705 | D7: 516519.3283 | E7: 5823435.306 | F7: 339039.9159 | G7: 0 | H7: 211987.4711 | I7: 375352.6842 | S7: GROS | T7: =SUM(ventes[GROS]) -> 103728854.1
B8: Eaux Minerale | C8: =SUM(ventes[[#This Row],[AUTRE DD]:[SUBD ]]) -> 1228998.156 | D8: 0 | E8: 1101561.178 | F8: 109285.7176 | G8: 0 | H8: 18151.26106 | I8: 0 | S8: AUTRE DD | T8: =SUM(ventes[AUTRE DD]) -> 8604353.051
B9: Harissa | C9: =SUM(ventes[[#This Row],[AUTRE DD]:[SUBD ]]) -> 1052420.607 | D9: 87126.0503 | E9: 900169.7481 | F9: 24719.32786 | G9: 0 | H9: 22960.10281 | I9: 17445.37824 | N9: Marge d'exploitation | O9: =O5/O6 -> 0.03243464038 | S9: PRESTIGE | T9: =SUM(G5:G19) -> 1484315.256
B10: LAIT | C10: =SUM(ventes[[#This Row],[AUTRE DD]:[SUBD ]]) -> 9179208 | D10: 125460 | E10: 7830743 | F10: 663649 | G10: 0 | H10: 5850 | I10: 553506 | S10: PROMOTION | T10: =SUM(ventes[PROMOTION]) -> 1201176.255
B11: PET 1.5L | C11: =SUM(ventes[[#This Row],[AUTRE DD]:[SUBD ]]) -> 40956928.08 | D11: 234151.2617 | E11: 22567553.06 | F11: 6391956.294 | G11: 54453.7818 | H11: 96118.85299 | I11: 11612694.83
B12: Pet 1l | C12: =SUM(ventes[[#This Row],[AUTRE DD]:[SUBD ]]) -> 109215159.1 | D12: 659997.288 | E12: 39585115.24 | F12: 13225133.62 | G12: 135126.0504 | H12: 124848.8912 | I12: 55484937.96
B13: Pet 1l carton jetable | C13: =SUM(ventes[[#This Row],[AUTRE DD]:[SUBD ]]) -> 1949757.531 | D13: 68571.42821 | E13: 1329828.047 | F13: 307478.151 | G13: 14369.74794 | H13: 1571.78891 | I13: 227938.368
B14: Pet 2l | C14: =SUM(ventes[[#This Row],[AUTRE DD]:[SUBD ]]) -> 166886859 | D14: 899332.3616 | E14: 55610759.44 | F14: 18748201.49 | G14: 387226.8902 | H14: 128890.2292 | I14: 91112448.6
B15: Pet 33 cl | C15: =SUM(ventes[[#This Row],[AUTRE DD]:[SUBD ]]) -> 33908963.22 | D15: 75963.02472 | E15: 15699283.93 | F15: 7233180.244 | G15: 9378.1512 | H15: 21441.51254 | I15: 10869716.35
B16: Tpk 100cl | C16: =SUM(ventes[[#This Row],[AUTRE DD]:[SUBD ]]) -> 114481783.3 | D16: 3846186.837 | E16: 75561175.78 | F16: 19308464.81 | G16: 637694.1188 | H16: 163032.7629 | I16: 14965228.97 | N16: Mois | O16: Ventes N | P16: Objectif N | Q16: Année N-1
B17: Tpk 20 cl | C17: =SUM(ventes[[#This Row],[AUTRE DD]:[SUBD ]]) -> 66576838.37 | D17: 1547556.502 | E17: 38120934.03 | F17: 16181404.4 | G17: 125874.918 | H17: 157522.1091 | I17: 10443546.41 | N17: Janvier | O17: 33263041.98 | P17: 35000000 | Q17: 0
B18: Triple concentré | C18: =SUM(ventes[[#This Row],[AUTRE DD]:[SUBD ]]) -> 4572486.322 | D18: 148941.1763 | E18: 2439563.022 | F18: 1256715.966 | G18: 0 | H18: 87211.39309 | I18: 640054.764 | N18: Février | O18: 46487894.4 | P18: 36000000 | Q18: 0
B19: PET 0.25 L | C19: =SUM(ventes[[#This Row],[AUTRE DD]:[SUBD ]]) -> 8332975.518 | D19: 13915.96637 | E19: 3874689.07 | F19: 1978971.448 | G19: 0 | H19: 47953.82025 | I19: 2417445.212 | N19: Mars | O19: 52584348.78 | P19: 38000000 | Q19: 0
N20: Avril | O20: 58465526.29 | P20: 40000000 | Q20: 0
C21: =+SUM(ventes[Totalgénéral]) -> 650019314.9 | N21: Mai | O21: 64694020.6 | P21: 45000000 | Q21: 0
N22: Juin | O22: 30449460.69 | P22: 40000000 | Q22: 53072075.8
N23: Juillet | O23: 97617823.93 | P23: 80000000 | Q23: 50868751.08
B24: Pet 2l | C24: 166886859 | D24: =(C24/$C$39)*100 -> 25.67413847 | N24: Août | O24: 102060868.4 | P24: 75000000 | Q24: 69501693.52
B25: Tpk 100cl | C25: 114481783.3 | D25: =(C25/$C$39)*100 -> 17.6120587 | N25: Septembre | O25: 83029796.06 | P25: 80000000 | Q25: 54661955.52
B26: Pet 1l | C26: 109215159.1 | D26: 16.80183289 | N26: Octobre | O26: 57435860.34 | P26: 60000000 | Q26: 49039607.82
B27: Canette 33 cl | C27: 82543204 | D27: 12.69857712 | N27: Novembre | O27: 0 | P27: 45000000 | Q27: 40380555.51
B28: Tpk 20 cl | C28: 66576838.37 | D28: 10.24228617 | N28: Décembre | O28: 0 | P28: 38000000 | Q28: 34221039.73
B29: PET 1.5L | C29: 40956928.08 | D29: 6.300878626 | N29: Totaux | O29: =SUM(O17:O28) -> 626088641.5 | P29: =SUM(P17:P28) -> 612000000
B30: Pet 33 cl | C30: 33908963.22 | D30: 5.216608559
B31: LAIT | C31: 9179208 | D31: 1.412143884
B32: PET 0.25 L | C32: 8332975.518 | D32: 1.28195814
B33: Confiture | C33: 7266334.705 | D33: 1.117864429
B34: Triple concentré | C34: 4572486.322 | D34: 0.7034385313
B35: Pet 1l carton jetable | C35: 1949757.531 | D35: 0.2999537839 | N35: % de la marge d'exploitation (entre 0 et 100)
B36: Boisson0.25l | C36: 1867399.059 | D36: 0.2872836262
B37: Eaux Minerale | C37: 1228998.156 | D37: 0.1890710211 | N37: Zone verte | O37: 33
B38: Harissa | C38: 1052420.607 | D38: 0.1619060516 | N38: Zone orange | O38: 33
C39: =+SUM(C24:C38) -> 650019314.9 | D39: =SUM(D24:D38) -> 100 | N39: Zone rouge | O39: 33
N40: Zone invisible | O40: =SUM(O37:O39) -> 99
N42: Valeur aiguille | O42: 15
N43: Largeur aiguille | O43: 1
N44: Invisible | O44: =SUM(O37:O40)-(O43+O42) -> 182
N46: Valeur Invisible1
N47: Valeur aiguille | O47: =O42&"%" -> 15%
N48: Valeur Invisible2

Sheet Tableau de Bord
U1: =U3/U4 -> 1.023020656 | Y1: 4
B2: 12 | Y2: 2
U3: =VenteObjectif[[#Totals],[Ventes N]] -> 626088641.5 | Y3: Objectif
U4: =VenteObjectif[[#Totals],[Objectif N]] -> 612000000 | Y4: Année N-1
Y7: =INDEX(liste,ControlCourbe) -> Année N-1
B24: Ventes
B25: =Y7 -> Année N-1
B40: Produit | C40: Totalgénéral | E40: AUTRE DD | G40: DD | I40: GROS | K40: PRESTIGE | M40: PROMOTION | O40: SUBD
B41: =INDIRECT("DONNEES!B"&(5+'Tableau de Bord'!Y1)) -> Harissa | C41: =INDIRECT("DONNEES!C"&(5+Y1)) -> 1052420.607 | D41: =C41 -> 1052420.607 | E41: =INDIRECT("DONNEES!D"&(5+Y1)) -> 87126.0503 | F41: =E41 -> 87126.0503 | G41: =INDIRECT("DONNEES!E"&(5+Y1)) -> 900169.7481 | H41: =G41 -> 900169.7481 | I41: =INDIRECT("DONNEES!F"&(5+Y1)) -> 24719.32786 | J41: =I41 -> 24719.32786 | K41: =INDIRECT("DONNEES!G"&(5+Y1)) -> 0 | L41: =K41 -> 0 | M41: =INDIRECT("DONNEES!H"&(5+Y1)) -> 22960.10281 | N41: =M41 -> 22960.10281 | O41: =INDIRECT("DONNEES!I"&(5+Y1)) -> 17445.37824 | P41: =O41 -> 17445.37824
B42: =INDEX(ListeProduit,MATCH(B41,ListeProduit,0)+1) -> LAIT | C42: =INDEX(Total_général,MATCH(C41,Total_général,0)+1) -> 9179208 | D42: 9179208 | E42: =INDEX(AUTRE_DD,MATCH(E41,AUTRE_DD,0)+1) -> 125460 | F42: 125460 | G42: =INDEX(DD,MATCH(G41,DD,0)+1) -> 7830743 | H42: 7830743 | I42: =INDEX(GROS,MATCH(I41,GROS,0)+1) -> 663649 | J42: 663649 | K42: =INDEX(PRESTIGE,MATCH(K41,PRESTIGE,0)+1) -> 120191.5971 | L42: 120191.5971 | M42: =INDEX(PROMOTION,MATCH(M41,PROMOTION,0)+1) -> 5850 | N42: 5850 | O42: =INDEX(SUBD,MATCH(O41,SUBD,0)+1) -> 553506 | P42: 553506
B43: PET 1.5L | C43: 40956928.08 | D43: 40956928.08 | E43: =INDEX(AUTRE_DD,MATCH(E42,AUTRE_DD,0)+1) -> 234151.2617 | F43: 234151.2617 | G43: 22567553.06 | H43: 22567553.06 | I43: 6391956.294 | J43: 6391956.294 | K43: 0 | L43: 0 | M43: 96118.85299 | N43: 96118.85299 | O43: 11612694.83 | P43: 11612694.83
B44: Pet 1l | C44: 109215159.1 | D44: 109215159.1 | E44: =INDEX(AUTRE_DD,MATCH(E43,AUTRE_DD,0)+1) -> 659997.288 | F44: 659997.288 | G44: 39585115.24 | H44: 39585115.24 | I44: 13225133.62 | J44: 13225133.62 | K44: 120191.5971 | L44: 120191.5971 | M44: 124848.8912 | N44: 124848.8912 | O44: 55484937.96 | P44: 55484937.96
B45: Pet 1l carton jetable | C45: 1949757.531 | D45: 1949757.531 | E45: =INDEX(AUTRE_DD,MATCH(E44,AUTRE_DD,0)+1) -> 68571.42821 | F45: 68571.42821 | G45: 1329828.047 | H45: 1329828.047 | I45: 307478.151 | J45: 307478.151 | K45: 0 | L45: 0 | M45: 1571.78891 | N45: 1571.78891 | O45: 227938.368 | P45: 227938.368
B46: Pet 2l | C46: 166886859 | D46: 166886859 | F46: 0 | G46: 55610759.44 | H46: 55610759.44 | I46: 18748201.49 | J46: 18748201.49 | K46: 120191.5971 | L46: 120191.5971 | M46: 128890.2292 | N46: 128890.2292 | O46: 91112448.6 | P46: 91112448.6
B47: Pet 33 cl | C47: 33908963.22 | D47: 33908963.22 | E47: =INDEX(AUTRE_DD,MATCH(E46,AUTRE_DD,0)+1) -> 87126.0503 | F47: 87126.0503 | G47: 15699283.93 | H47: 15699283.93 | I47: 7233180.244 | J47: 7233180.244 | K47: 0 | L47: 0 | M47: 21441.51254 | N47: 21441.51254 | O47: 10869716.35 | P47: 10869716.35
B48: Tpk 100cl | C48: 114481783.3 | D48: 114481783.3 | E48: =INDEX(AUTRE_DD,MATCH(E47,AUTRE_DD,0)+1) -> 125460 | F48: 125460 | G48: 75561175.78 | H48: 75561175.78 | I48: 19308464.81 | J48: 19308464.81 | K48: 120191.5971 | L48: 120191.5971 | M48: 163032.7629 | N48: 163032.7629 | O48: 14965228.97 | P48: 14965228.97
B49: Tpk 20 cl | C49: 66576838.37 | D49: 66576838.37 | E49: =INDEX(AUTRE_DD,MATCH(E48,AUTRE_DD,0)+1) -> 234151.2617 | F49: 234151.2617 | G49: 38120934.03 | H49: 38120934.03 | I49: 16181404.4 | J49: 16181404.4 | K49: 0 | L49: 0 | M49: 157522.1091 | N49: 157522.1091 | O49: 10443546.41 | P49: 10443546.41
B50: Triple concentré | C50: 4572486.322 | D50: 4572486.322 | E50: =INDEX(AUTRE_DD,MATCH(E49,AUTRE_DD,0)+1) -> 659997.288 | F50: 659997.288 | G50: 2439563.022 | H50: 2439563.022 | I50: 1256715.966 | J50: 1256715.966 | K50: 120191.5971 | L50: 120191.5971 | M50: 87211.39309 | N50: 87211.39309 | O50: 640054.764 | P50: 640054.764
B54: Performance des ventes réelles (%) | K54: Ecart Ventes réelles Vs Objectifs
B55: Aout | C55: ="Objectif:"&Feuil1!H7 -> Objectif:75000000 | D55: ="Vente réelle:"&Feuil1!H8 -> Vente réelle:103039876,202642 | F55: ="Ecart:" -> Ecart: | G55: =Feuil1!H9 -> 37.3865016 | H55: %
B76: Vente Par Produit | K76: Vente Par Canal
B77: Produits | C77: part dans CA
B79: Pet 2l | C79: =DONNEES!D24 -> 25.67413847
B80: Tpk 100cl | C80: =DONNEES!D25 -> 17.6120587
B81: Pet 1l | C81: =DONNEES!D26 -> 16.80183289
B82: Canette 33 cl | C82: =DONNEES!D27 -> 12.69857712
B83: Tpk 20 cl | C83: =DONNEES!D28 -> 10.24228617
B84: PET 1.5L | C84: =DONNEES!D29 -> 6.300878626
B85: Pet 33 cl | C85: =DONNEES!D30 -> 5.216608559
B86: LAIT | C86: =DONNEES!D31 -> 1.412143884
B87: PET 0.25 L | C87: =DONNEES!D32 -> 1.28195814
B88: Confiture | C88: =DONNEES!D33 -> 1.117864429
B89: Triple concentré | C89: =DONNEES!D34 -> 0.7034385313
B90: Pet 1l carton jetable | C90: =DONNEES!D35 -> 0.2999537839
B91: Boisson0.25l | C91: =DONNEES!D36 -> 0.2872836262
B92: Eaux Minerale | C92: =DONNEES!D37 -> 0.1890710211
B93: Harissa | C93: =DONNEES!D38 -> 0.1619060516

Sheet compteur
B16: Zone verte | C16: 33
B17: Zone orange | C17: 33
B18: Zone rouge | C18: 33
B19: Zone invisible | C19: =SUM(C16:C18) -> 99
B21: Valeur aiguille | C21: 3
B22: Largeur aiguille | C22: 1
B23: Invisible | C23: =SUM(C16:C19)-(C22+C21) -> 194
B25: Valeur Invisible1
B26: Valeur aiguille | C26: =DONNEES!O9 -> 0.03243464038
B27: Valeur Invisible2

Sheet Feuil1
B5: Table 1 - Performance des ventes | G5: Table 2 - Selected Sales rep
B6: Mois | C6: Objectif | D6: ventes réelles | E6: Ecart | G6: Mois | H6: ='Tableau de Bord'!B55 -> Aout
B7: Janvier | C7: 35000000 | D7: 34568468.9 | E7: =(D7-C7) -> -431531.104 | G7: Objectif | H7: =VLOOKUP($H$6,$B$7:$D$16,2,FALSE) -> 75000000
B8: Fevrier | C8: 36000000 | D8: 46544005.82 | E8: =(D8-C8) -> 10544005.82 | G8: ventes réelles | H8: =VLOOKUP($H$6,$B$7:$D$16,3,FALSE) -> 103039876.2
B9: Mars | C9: 38000000 | D9: 52697942.93 | E9: 14697942.93 | G9: Ecart(réelle/ objectif) (%) | H9: =((H8-H7)/H7)*100 -> 37.3865016
B10: Avril | C10: 40000000 | D10: 60777235.53 | E10: 20777235.53
B11: Mai | C11: 45000000 | D11: 67292181.32 | E11: 22292181.32
B12: Juin | C12: 40000000 | D12: 31315282.21 | E12: -8684717.793
B13: Juillet | C13: 80000000 | D13: 98070910.03 | E13: 18070910.03 | G13: Table 4 - Ticker settings
B14: Aout | C14: 75000000 | D14: 103039876.2 | E14: 28039876.2 | G14: Actual /Plan (%) (modified) | H14: =H9-1 -> 36.3865016
B15: Septembre | C15: 80000000 | D15: 85114140.34 | E15: 5114140.338 | G15: Ticker | H15: 2
B16: Octobre | C16: 60000000 | D16: 61557722.34 | E16: 1557722.341 | G16: Rest value | H16: =C24-H15-H14 -> 141.6134984
B17: Total | C17: =SUM(C7:C16) -> 529000000 | D17: =SUM(D7:D16) -> 640977765.6 | G17: Total | H17: =SUM(H14:H16) -> 180
B19: Table 3 - Zone settings
B20: Red Zone | C20: 20 | G20: Mois | H20: =E6 -> Ecart
B21: Orange Zone | C21: 30 | G21: Janvier | H21: =E7 -> -431531.104
B22: Green Zone | C22: 70 | G22: Fevrier | H22: 10544005.82
B23: Hidden Zone | C23: 60 | G23: Mars | H23: 14697942.93
B24: Total | C24: =SUM(C20:C23) -> 180 | G24: Avril | H24: 20777235.53
G25: Mai | H25: 22292181.32
G26: Juin | H26: -8684717.793
G27: Juillet | H27: 18070910.03
G28: Aout | H28: 28039876.2
G29: Septembre | H29: 5114140.338
G30: Octobre | H30: 1557722.341

Sheet Feuil3
I6: Année | J6: 2017
C7: Année | D7: Mois | E7: Canal | F7: objectif | G7: ventes réelles
C8: 2017 | D8: Janvier | E8: Autre DD | F8: 800000 | G8: 760309.9169 | I8: Étiquettes de lignes | J8: Somme de objectif | K8: Somme de ventes réelles | N8: =(34568468.9-35000000)/35000000 -> -0.01232946
C9: 2017 | D9: Janvier | E9: DD | F9: 20000000 | G9: 20390137.57 | I9: Janvier | J9: 35000000 | K9: 34568468.9
C10: 2017 | D10: Janvier | E10: Gros | F10: 7500000 | G10: 7611189.803 | I10: Fevrier | J10: 36000000 | K10: 46544005.82
C11: 2017 | D11: Janvier | E11: Prestige | F11: 200000 | G11: 102174.4537 | I11: Mars | J11: 38000000 | K11: 52697942.93
C12: 2017 | D12: Janvier | E12: Promotion | G12: 0 | I12: Avril | J12: 40000000 | K12: 60777235.53
C13: 2017 | D13: Janvier | E13: SUBD | F13: 6500000 | G13: 5704657.151 | I13: Mai | J13: 45000000 | K13: 67292181.32
C14: 2017 | D14: Fevrier | E14: Autre DD | F14: 600000 | G14: 382134.4632 | I14: Juin | J14: 40000000 | K14: 31315282.21
C15: 2017 | D15: Fevrier | E15: DD | F15: 20000000 | G15: 23555044.95 | I15: Juillet | J15: 80000000 | K15: 98070910.03
C16: 2017 | D16: Fevrier | E16: Gros | F16: 8000000 | G16: 12198597.14 | I16: Aout | J16: 75000000 | K16: 103039876.2
C17: 2017 | D17: Fevrier | E17: Prestige | F17: 400000 | G17: 292810.0845 | I17: Septembre | J17: 80000000 | K17: 85114140.34
C18: 2017 | D18: Fevrier | E18: Promotion | G18: 0 | I18: Octobre | J18: 60000000 | K18: 61557722.34
C19: 2017 | D19: Fevrier | E19: SUBD | F19: 7000000 | G19: 10115419.18 | I19: Total général | J19: 529000000 | K19: 640977765.6
C20: 2017 | D20: Mars | E20: Autre DD | F20: 500000 | G20: 911546.2209
C21: 2017 | D21: Mars | E21: DD | F21: 18000000 | G21: 24631309.76
C22: 2017 | D22: Mars | E22: Gros | F22: 8000000 | G22: 10649114.32
C23: 2017 | D23: Mars | E23: Prestige | F23: 200000 | G23: 126806.7227 | J23: =VLOOKUP(J23,Gauge!C5:E14,1,FALSE) -> 0
C24: 2017 | D24: Mars | E24: Promotion | F24: 100000 | G24: 51714.28626
C25: 2017 | D25: Mars | E25: SUBD | F25: 11200000 | G25: 16327451.62
C26: 2017 | D26: Avril | E26: Autre DD | F26: 900000 | G26: 777086.7277
C27: 2017 | D27: Avril | E27: DD | F27: 26000000 | G27: 32919976.82
C28: 2017 | D28: Avril | E28: Gros | F28: 6000000 | G28: 8899814.895
C29: 2017 | D29: Avril | E29: Prestige | G29: 0
C30: 2017 | D30: Avril | E30: Promotion | F30: 100000 | G30: 13445.32416
C31: 2017 | D31: Avril | E31: SUBD | F31: 7000000 | G31: 18166911.76
C32: 2017 | D32: Mai | E32: Autre DD | F32: 1000000 | G32: 1261612.235
C33: 2017 | D33: Mai | E33: DD | F33: 20000000 | G33: 28844823.12
C34: 2017 | D34: Mai | E34: Gros | F34: 8000000 | G34: 11217676.7
C35: 2017 | D35: Mai | E35: Prestige
C36: 2017 | D36: Mai | E36: Promotion | F36: 100000 | G36: 68817.01675
C37: 2017 | D37: Mai | E37: SUBD | F37: 15900000 | G37: 25899252.25
C38: 2017 | D38: Juin | E38: Autre DD | F38: 600000 | G38: 281747.4946
C39: 2017 | D39: Juin | E39: DD | F39: 18000000 | G39: 13255042.34
C40: 2017 | D40: Juin | E40: Gros | F40: 6000000 | G40: 3948728.832
C41: 2017 | D41: Juin | E41: Prestige | F41: 300000 | G41: 138902.5211
C42: 2017 | D42: Juin | E42: Promotion | F42: 100000 | G42: 67279.20151
C43: 2017 | D43: Juin | E43: SUBD | F43: 15000000 | G43: 13623581.81
C44: 2017 | D44: Juillet | E44: Autre DD | F44: 1000000 | G44: 1177954.087
C45: 2017 | D45: Juillet | E45: DD | F45: 33000000 | G45: 36140239.28
C46: 2017 | D46: Juillet | E46: Gros | F46: 9000000 | G46: 11540198.66
C47: 2017 | D47: Juillet | E47: Prestige | F47: 200000 | G47: 323871.8936
C48: 2017 | D48: Juillet | E48: Promotion | F48: 100000 | G48: 43486.54684
C49: 2017 | D49: Juillet | E49: SUBD | F49: 36700000 | G49: 48845159.56
C50: 2017 | D50: Aout | E50: Autre DD | F50: 1000000 | G50: 1495424.23
C51: 2017 | D51: Aout | E51: DD | F51: 29000000 | G51: 42832274.87
C52: 2017 | D52: Aout | E52: Gros | F52: 9000000 | G52: 15200969.58
C53: 2017 | D53: Aout | E53: Prestige | F53: 300000 | G53: 503951.5966
C54: 2017 | D54: Aout | E54: Promotion | F54: 100000 | G54: 21684.87397
C55: 2017 | D55: Aout | E55: SUBD | F55: 35600000 | G55: 42985571.06
C56: 2017 | D56: Septembre | E56: Autre DD | F56: 1000000 | G56: 586384.039
C57: 2017 | D57: Septembre | E57: DD | F57: 33000000 | G57: 33226368.98
C58: 2017 | D58: Septembre | E58: Gros | F58: 9000000 | G58: 11467898.31
C59: 2017 | D59: Septembre | E59: Prestige | F59: 200000
C60: 2017 | D60: Septembre | E60: Promotion | F60: 100000 | G60: 10705.88237
C61: 2017 | D61: Septembre | E61: SUBD | F61: 36700000 | G61: 39822783.12
C62: 2017 | D62: Octobre | E62: Autre DD | F62: 1000000 | G62: 628440.7086
C63: 2017 | D63: Octobre | E63: DD | F63: 33500000 | G63: 36374887.45
C64: 2017 | D64: Octobre | E64: Gros | F64: 10000000 | G64: 10043153.07
C65: 2017 | D65: Octobre | E65: Prestige | F65: 100000 | G65: 4202.01675
C66: 2017 | D66: Octobre | E66: Promotion | F66: 800000 | G66: 909143.7602
C67: 2017 | D67: Octobre | E67: SUBD | F67: 14600000 | G67: 13597895.33

Sheet Gauge
C3: Table 1 - Sales Performance | G3: Table 2 - Selected Sales rep
C4: Mois | D4: Plan | E4: Actual | G4: Mois | H4: =$L$7 -> Janvier
C5: Janvier | D5: 35000000 | E5: 34568468.9 | G5: Actual | H5: =VLOOKUP($H$4,$C$5:$E$12,3,FALSE) -> 34568468.9 | L5: Sales performance (%)
C6: Fevrier | D6: 36000000 | E6: 46544005.82 | G6: Plan | H6: =VLOOKUP($H$4,$C$5:$E$12,2,FALSE) -> 35000000
C7: Mars | D7: 38000000 | E7: 52697942.93 | G7: Actual / Plan (%) | H7: =((H5/H6)) -> 0.9876705399 | L7: Janvier | M7: ="Actual: "&H6 -> Actual: 35000000 | N7: ="Plan: "&H5 -> Plan: 34568468,895985 | O7: ="Status: " -> Status: | P7: =H7 -> 0.9876705399 | Q7: %
C8: Avril | D8: 40000000 | E8: 60777235.53
C9: Mai | D9: 45000000 | E9: 67292181.32
C10: Juin | D10: 40000000 | E10: 31315282.21
C11: Juillet | D11: 80000000 | E11: 98070910.03
C12: Aout | D12: 75000000 | E12: 103039876.2
C13: Septembre | D13: 80000000 | E13: 85114140.34
C14: Octobre | D14: 60000000 | E14: 61557722.34 | G14: Table 4 - Ticker settings
C15: Table 3 - Zone settings | G15: Actual /Plan (%) (modified) | H15: =H7-1 -> -0.01232946011
C16: Red Zone | D16: 20 | G16: Ticker | H16: 2
C17: Orange Zone | D17: 30 | G17: Rest value | H17: =D20-H16-H15 -> 178.0123295
C18: Green Zone | D18: 70 | G18: Total | H18: =SUM(H15:H17) -> 180
C19: Hidden Zone | D19: 60
C20: Total | D20: =SUM(D16:D19) -> 180
D21: 180
D22: =D21-D20 -> 0
M28: 70%-on OK
